2CCN - Level 2 Cost Centre Name,,9CCN - Level 9 Cost Centre Name,9CCC - Level 9 Cost Centre Code,9AN - Level 9 Account Name,9AC - Level 9 Account Code,Date posted,Date of transaction,Merchant Name,Merchant City,Merchant State,Merchant Zip Code,Originating Account Name,Originating Account Number,MCC/SIC Code,MCC Description,Original Amount,Currency,Conversion Rate,Billed Amount,Debit Credit,Reference Number,Statement Cycle,Account Name
Gloucester City Council,23UE,Museum of Gloucester,MU002,Catering Provisions,3103,07/05/2018,04/05/2018,ASDA SUPERSTORE,GLOUCESTER,GBR,GL1 1DS,REDACTED,556*********2362,5411,"GROCERY STORES, SUPERMARKETS",3.3,Pound Sterling (826),1.000000000,3.3,Debit,45377758125060221370528,02/06/2018,GLOUCESTER CC
Gloucester City Council,23UE,Gloucester Life Museum,MU005,Catering Provisions,3103,07/05/2018,05/05/2018,ASDA SUPERSTORE,GLOUCESTER,GBR,GL1 1DS,REDACTED,556*********2362,5411,"GROCERY STORES, SUPERMARKETS",5.48,Pound Sterling (826),1.000000000,5.48,Debit,15377758126060667161029,02/06/2018,GLOUCESTER CC
Gloucester City Council,23UE,Museum of Gloucester,MU002,General Supplies/Materials,3025,09/05/2018,08/05/2018,B & Q 1179,GLOUCESTER,,GL12SG,REDACTED,556*********2362,5211,LUMBER AND BUILDING MATERIALS STORES,155.54,Pound Sterling (826),1.000000000,155.54,Debit,85481478129039282930982,02/06/2018,GLOUCESTER CC
Gloucester City Council,23UE,Museum of Gloucester,MU002,General Supplies/Materials,3025,09/05/2018,08/05/2018,THE WORKS,GLOUCESTER,,GL1 2NG,REDACTED,556*********2362,5310,DISCOUNT STORES,8,Pound Sterling (826),1.000000000,8,Debit,85481478129039360322953,02/06/2018,GLOUCESTER CC
Gloucester City Council,23UE,Museum of Gloucester,MU002,Catering Provisions,3103,10/05/2018,09/05/2018,ASDA SUPERSTORE,GLOUCESTER,GBR,GL1 1DS,REDACTED,556*********2362,5411,"GROCERY STORES, SUPERMARKETS",8.6,Pound Sterling (826),1.000000000,8.6,Debit,45377758130080177977350,02/06/2018,GLOUCESTER CC
Gloucester City Council,23UE,Museum of Gloucester,MU002,General Supplies/Materials,3025,11/05/2018,10/05/2018,THE WORKS,GLOUCESTER,,GL1 2NG,REDACTED,556*********2362,5310,DISCOUNT STORES,9,Pound Sterling (826),1.000000000,9,Debit,85481478131039841002428,02/06/2018,GLOUCESTER CC
Gloucester City Council,23UE,Museum of Gloucester,MU002,Catering Provisions,3103,14/05/2018,12/05/2018,ASDA SUPERSTORE,GLOUCESTER,GBR,GL1 1DS,REDACTED,556*********2362,5411,"GROCERY STORES, SUPERMARKETS",4.96,Pound Sterling (826),1.000000000,4.96,Debit,15377758133000637883667,02/06/2018,GLOUCESTER CC
Gloucester City Council,23UE,Museum of Gloucester,MU002,General Supplies/Materials,3025,16/05/2018,15/05/2018,THE WORKS,GLOUCESTER,,GL1 2NG,REDACTED,556*********2362,5310,DISCOUNT STORES,2,Pound Sterling (826),1.000000000,2,Debit,85481478136041165967314,02/06/2018,GLOUCESTER CC
Gloucester City Council,23UE,Museum of Gloucester,MU002,General Supplies/Materials,3025,17/05/2018,16/05/2018,WH SMITH,GLOUCESTER,GBR,GL1 1NZ,REDACTED,556*********2362,5994,NEWS DEALERS AND NEWSSTANDS,8.99,Pound Sterling (826),1.000000000,8.99,Debit,25377758137030138904238,02/06/2018,GLOUCESTER CC
Gloucester City Council,23UE,Gloucester Life Museum,MU005,Catering Provisions,3103,21/05/2018,19/05/2018,ASDA SUPERSTORE,GLOUCESTER,GBR,GL1 1DS,REDACTED,556*********2362,5411,"GROCERY STORES, SUPERMARKETS",2.96,Pound Sterling (826),1.000000000,2.96,Debit,15377758140050637392301,02/06/2018,GLOUCESTER CC
Gloucester City Council,23UE,Museum of Gloucester,MU002,General Supplies/Materials,3025,28/05/2018,25/05/2018,Amazon EU,AMAZON.CO.UK,LUX,L2338,REDACTED,556*********2362,5969,ALL OTHER DIRECT MARKETERS,114.99,Pound Sterling (826),1.000000000,114.99,Debit,55204728145200776936680,02/06/2018,GLOUCESTER CC
Gloucester City Council,23UE,Museum of Gloucester,MU002,Catering Provisions,3103,28/05/2018,26/05/2018,ASDA SUPERSTORE,GLOUCESTER,GBR,GL1 1DS,REDACTED,556*********2362,5411,"GROCERY STORES, SUPERMARKETS",17.72,Pound Sterling (826),1.000000000,17.72,Debit,15377758147000669633992,02/06/2018,GLOUCESTER CC
Gloucester City Council,23UE,Museum of Gloucester,MU002,General Supplies/Materials,3025,30/05/2018,29/05/2018,MILLINGTON & RAMST,GLOUCESTER,,GL1 5TA,REDACTED,556*********2362,5251,HARDWARE STORES,99.62,Pound Sterling (826),1.000000000,99.62,Debit,85481478149044857270935,02/06/2018,GLOUCESTER CC
Gloucester City Council,23UE,Guildhall Bar & Caf�,GH005,Catering Provisions,3103,07/05/2018,04/05/2018,ASDA SUPERSTORE,GLOUCESTER,GBR,GL1 1DS,REDACTED,556*********1155,5411,"GROCERY STORES, SUPERMARKETS",9.58,Pound Sterling (826),1.000000000,9.58,Debit,45377758125060221382549,02/06/2018,GLOUCESTER CC
Gloucester City Council,23UE,Guildhall Bar & Caf�,GH005,Catering Provisions,3103,07/05/2018,04/05/2018,WM MORRISON STORE,575 GLOUCESTE,,GL1 4BD,REDACTED,556*********1155,5411,"GROCERY STORES, SUPERMARKETS",4.43,Pound Sterling (826),1.000000000,4.43,Debit,85481478125038452239053,02/06/2018,GLOUCESTER CC
Gloucester City Council,23UE,Guildhall Bar & Caf�,GH005,Catering Provisions,3103,07/05/2018,06/05/2018,BOOKER LIMITED GLOUCES,GLOUCESTER,GBR,GL4 3RT,REDACTED,556*********1155,5811,CATERERS,77.98,Pound Sterling (826),1.000000000,77.98,Debit,55184228126891270756620,02/06/2018,GLOUCESTER CC
Gloucester City Council,23UE,Guildhall Bar & Caf�,GH005,Catering Provisions,3103,09/05/2018,08/05/2018,SAINSBURYS SACAT 0771,GLOUCESTER,GBR,GL1 2AG,REDACTED,556*********1155,5411,"GROCERY STORES, SUPERMARKETS",5,Pound Sterling (826),1.000000000,5,Debit,35425158129070171090978,02/06/2018,GLOUCESTER CC
Gloucester City Council,23UE,Guildhall Bar & Caf�,GH005,Catering Provisions,3103,09/05/2018,08/05/2018,FARM HOUSE DELI,GLOUCESTER,GBR,GL1 2AG,REDACTED,556*********1155,5411,"GROCERY STORES, SUPERMARKETS",14.49,Pound Sterling (826),1.000000000,14.49,Debit,55184228128941282785592,02/06/2018,GLOUCESTER CC
Gloucester City Council,23UE,Guildhall Events,GH002,Professional Advice/Consultants Fees,3952,14/05/2018,11/05/2018,WM MORRISON STORE,575 GLOUCESTE,,GL1 4BD,REDACTED,556*********1155,5411,"GROCERY STORES, SUPERMARKETS",35.84,Pound Sterling (826),1.000000000,35.84,Debit,85481478132040147927440,02/06/2018,GLOUCESTER CC
Gloucester City Council,23UE,Guildhall Bar & Caf�,GH005,Catering Provisions,3103,14/05/2018,12/05/2018,BOOKER LIMITED GLOUCES,GLOUCESTER,GBR,GL4 3RT,REDACTED,556*********1155,5811,CATERERS,94.76,Pound Sterling (826),1.000000000,94.76,Debit,55184228132891335721926,02/06/2018,GLOUCESTER CC
Gloucester City Council,23UE,Gloucester Guildhall,GH001,Equipment and Furniture,3001,16/05/2018,15/05/2018,WWW.EVOLVEOFFICE.CO.UK,COLCHESTER,,CO7 7YH,REDACTED,556*********1155,5999,MISCELLANEOUS AND RETAIL STORES,54.24,Pound Sterling (826),1.000000000,54.24,Debit,55203348136003000042930,02/06/2018,GLOUCESTER CC
Gloucester City Council,23UE,Guildhall Bar & Caf�,GH010,Catering Provisions,3103,17/05/2018,16/05/2018,SAINSBURYS 0608,BARNWOOD,GBR,GL4 3RT,REDACTED,556*********1155,5411,"GROCERY STORES, SUPERMARKETS",78.8,Pound Sterling (826),1.000000000,78.8,Debit,35425158137030160558468,02/06/2018,GLOUCESTER CC
Gloucester City Council,23UE,Guildhall Bar & Caf�,GH005,Catering Provisions,3103,17/05/2018,16/05/2018,ICELAND,GLOUCESTER,GBR,GL1 1SA,REDACTED,556*********1155,5411,"GROCERY STORES, SUPERMARKETS",2,Pound Sterling (826),1.000000000,2,Debit,25377758137030087780985,02/06/2018,GLOUCESTER CC
Gloucester City Council,23UE,Blackfriars ,GH010,Catering Provisions,3103,17/05/2018,16/05/2018,TESCO STORES (6819),GLOUCESTER,GBR,GL1 1TP,REDACTED,556*********1155,5411,"GROCERY STORES, SUPERMARKETS",5.5,Pound Sterling (826),1.000000000,5.5,Debit,65377758137030361049467,02/06/2018,GLOUCESTER CC
Gloucester City Council,23UE,Blackfriars ,GH010,Catering Provisions,3103,17/05/2018,16/05/2018,POUNDWORLD RETAIL,GLOUCESTER,GBR,GL1 1PA,REDACTED,556*********1155,5331,VARIETY STORES,3,Pound Sterling (826),1.000000000,3,Debit,55184228136901375447641,02/06/2018,GLOUCESTER CC
Gloucester City Council,23UE,Guildhall Bar & Caf�,GH005,Catering Provisions,3103,17/05/2018,16/05/2018,BOOKER LIMITED GLOUCES,GLOUCESTER,GBR,GL4 3RT,REDACTED,556*********1155,5811,CATERERS,29.96,Pound Sterling (826),1.000000000,29.96,Debit,55184228136891376560734,02/06/2018,GLOUCESTER CC
Gloucester City Council,23UE,Guildhall Bar & Caf�,GH005,Equipment and Furniture,3001,22/05/2018,21/05/2018,Amazon UK Marketplace,800-279-6620,LUX,L2338,REDACTED,556*********1155,5942,BOOK STORES,51.23,Pound Sterling (826),1.000000000,51.23,Debit,55204728141200088697354,02/06/2018,GLOUCESTER CC
Gloucester City Council,23UE,Guildhall Bar & Caf�,GH005,Equipment and Furniture,3001,22/05/2018,21/05/2018,Amazon UK Marketplace,800-279-6620,LUX,L2338,REDACTED,556*********1155,5942,BOOK STORES,37.06,Pound Sterling (826),1.000000000,37.06,Debit,55204728141200104925656,02/06/2018,GLOUCESTER CC
Gloucester City Council,23UE,Guildhall Bar & Caf�,GH005,Equipment and Furniture,3001,22/05/2018,22/05/2018,Amazon UK Marketplace,800-279-6620,LUX,L2338,REDACTED,556*********1155,5942,BOOK STORES,13.44,Pound Sterling (826),1.000000000,13.44,Debit,55204728142200165910638,02/06/2018,GLOUCESTER CC
Gloucester City Council,23UE,Guildhall Bar & Caf�,GH005,Equipment and Furniture,3001,23/05/2018,22/05/2018,Amazon UK Marketplace,800-279-6620,LUX,L2338,REDACTED,556*********1155,5942,BOOK STORES,67.99,Pound Sterling (826),1.000000000,67.99,Debit,55204728142200224042498,02/06/2018,GLOUCESTER CC
Gloucester City Council,23UE,Guildhall Bar & Caf�,GH005,Equipment and Furniture,3001,23/05/2018,22/05/2018,Amazon UK Marketplace,800-279-6620,LUX,L2338,REDACTED,556*********1155,5942,BOOK STORES,5.29,Pound Sterling (826),1.000000000,5.29,Debit,55204728142200228698865,02/06/2018,GLOUCESTER CC
Gloucester City Council,23UE,Guildhall Bar & Caf�,GH005,Catering Provisions,3103,24/05/2018,23/05/2018,SAINSBURYS 2095,OAKLEY,GBR,GL52 5AQ,REDACTED,556*********1155,5411,"GROCERY STORES, SUPERMARKETS",41.86,Pound Sterling (826),1.000000000,41.86,Debit,25425158144080111882006,02/06/2018,GLOUCESTER CC
Gloucester City Council,23UE,Guildhall Bar & Caf�,GH005,Catering Provisions,3103,24/05/2018,23/05/2018,ASDA SUPERSTORE,GLOUCESTER,GBR,GL1 1DS,REDACTED,556*********1155,5411,"GROCERY STORES, SUPERMARKETS",3,Pound Sterling (826),1.000000000,3,Debit,45377758144080181296262,02/06/2018,GLOUCESTER CC
Gloucester City Council,23UE,Guildhall Bar & Caf�,GH005,Equipment and Furniture,3001,30/05/2018,29/05/2018,B & Q 1179,GLOUCESTER,,GL12SG,REDACTED,556*********1155,5211,LUMBER AND BUILDING MATERIALS STORES,2.83,Pound Sterling (826),1.000000000,2.83,Debit,85481478150044957528980,02/06/2018,GLOUCESTER CC
Gloucester City Council,23UE,Blackfriars ,GH010,Catering Provisions,3103,01/06/2018,31/05/2018,TESCO STORE 2581,GLOUCESTER,GBR,GL1 2SR,REDACTED,556*********1155,5411,"GROCERY STORES, SUPERMARKETS",19.4,Pound Sterling (826),1.000000000,19.4,Debit,45377758152030291237242,02/06/2018,GLOUCESTER CC
Gloucester City Council,23UE,Guildhall Bar & Caf�,GH005,Equipment and Furniture,3001,01/06/2018,31/05/2018,WH SMITH,GLOUCESTER,GBR,GL1 1NZ,REDACTED,556*********1155,5994,NEWS DEALERS AND NEWSSTANDS,9.99,Pound Sterling (826),1.000000000,9.99,Debit,25377758152030160806301,02/06/2018,GLOUCESTER CC
Gloucester City Council,23UE,Guildhall Bar & Caf�,GH005,Equipment and Furniture,3001,01/06/2018,31/05/2018,WH SMITH,GLOUCESTER,GBR,GL1 1NZ,REDACTED,556*********1155,5994,NEWS DEALERS AND NEWSSTANDS,9.99,Pound Sterling (826),1.000000000,9.99,Debit,25377758152030160808448,02/06/2018,GLOUCESTER CC
Gloucester City Council,23UE,Members Support,DS002,Public Transport - Staff,2402,31/05/2018,30/05/2018,Trainline,London,GBR,1445,REDACTED,556*********3029,4112,PASSENGER RAILWAYS,47.3,Pound Sterling (826),1.000000000,47.3,Debit,85130088150821754543912,02/06/2018,GLOUCESTER CC
Gloucester City Council,23UE,Housing Services,HS001,B&B Payments,1303,03/05/2018,02/05/2018,TRAVELODGE GB0000,THAME,,OX9 3AT,REDACTED,556*********6959,3615,TRAVELODGE,92,Pound Sterling (826),1.000000000,92,Debit,55504438122298163948516,02/06/2018,GLOUCESTER CC
Gloucester City Council,23UE,Housing Services,HS001,B&B Payments,1303,04/05/2018,03/05/2018,TRAVELODGE GB0000,THAME,,OX9 3AT,REDACTED,556*********6959,3615,TRAVELODGE,300,Pound Sterling (826),1.000000000,300,Debit,55504438123298170785140,02/06/2018,GLOUCESTER CC
Gloucester City Council,23UE,Housing Services,HS001,B&B Payments,1303,04/05/2018,03/05/2018,Amerisuites,GLOUCESTER,,GL2 4NF,REDACTED,556*********6959,3514,AMERISUITES,560,Pound Sterling (826),1.000000000,560,Debit,85481478124038081308825,02/06/2018,GLOUCESTER CC
Gloucester City Council,23UE,Housing Services,HS001,Mileage and Travel Allowances,2401,07/05/2018,05/05/2018,NATIONAL EXPRESS LIMIT,BIRMINGHAM,,B5 6DD,REDACTED,556*********6959,4131,"BUS LINES, CHARTERS, TOUR BUSES",9.3,Pound Sterling (826),1.000000000,9.3,Debit,85481478126038683731075,02/06/2018,GLOUCESTER CC
Gloucester City Council,23UE,Housing Services,HS001,Mileage and Travel Allowances,2401,09/05/2018,08/05/2018,STAGECOACH SERVICE,STOCKPORT,GBR,SK3 0DU,REDACTED,556*********6959,4131,"BUS LINES, CHARTERS, TOUR BUSES",25.7,Pound Sterling (826),1.000000000,25.7,Debit,15425158129070022135370,02/06/2018,GLOUCESTER CC
Gloucester City Council,23UE,Housing Services,HS001,Mileage and Travel Allowances,2401,09/05/2018,08/05/2018,321 THREE 2 ONE LTD,GLOUCESTER,GBR,GL1 4JJ,REDACTED,556*********6959,4121,TAXICABS/LIMOUSINES,22,Pound Sterling (826),1.000000000,22,Debit,45425158129070308464277,02/06/2018,GLOUCESTER CC
Gloucester City Council,23UE,Housing Services,HS001,B&B Payments,1303,09/05/2018,08/05/2018,TRAVELODGE GB0000,THAME,,OX9 3AT,REDACTED,556*********6959,3615,TRAVELODGE,403,Pound Sterling (826),1.000000000,403,Debit,55504438128298103262568,02/06/2018,GLOUCESTER CC
Gloucester City Council,23UE,Housing Services,HS001,B&B Payments,1303,09/05/2018,08/05/2018,TRAVELODGE GB0000,THAME,,OX9 3AT,REDACTED,556*********6959,3615,TRAVELODGE,447,Pound Sterling (826),1.000000000,447,Debit,55504438128298103271080,02/06/2018,GLOUCESTER CC
Gloucester City Council,23UE,Housing Services,HS001,B&B Payments,1303,09/05/2018,08/05/2018,TRAVELODGE GB0000,THAME,,OX9 3AT,REDACTED,556*********6959,3615,TRAVELODGE,447,Pound Sterling (826),1.000000000,447,Debit,55504438128298103264259,02/06/2018,GLOUCESTER CC
Gloucester City Council,23UE,Housing Services,HS001,B&B Payments,1303,09/05/2018,08/05/2018,Amerisuites,GLOUCESTER,,GL2 4NF,REDACTED,556*********6959,3514,AMERISUITES,285,Pound Sterling (826),1.000000000,285,Debit,85481478129039333117662,02/06/2018,GLOUCESTER CC
Gloucester City Council,23UE,Housing Services,HS001,B&B Payments,1303,09/05/2018,08/05/2018,Amerisuites,GLOUCESTER,,GL2 4NF,REDACTED,556*********6959,3514,AMERISUITES,560,Pound Sterling (826),1.000000000,560,Debit,85481478129039333117670,02/06/2018,GLOUCESTER CC
Gloucester City Council,23UE,Housing Services,HS001,B&B Payments,1303,09/05/2018,08/05/2018,TRAVELODGE GB0000,THAME,,OX9 3AT,REDACTED,556*********6959,3615,TRAVELODGE,-258,Pound Sterling (826),1.000000000,-258,Credit,55504438128295343243408,02/06/2018,GLOUCESTER CC
Gloucester City Council,23UE,Housing Services,HS001,B&B Payments,1303,15/05/2018,14/05/2018,TRAVELODGE GB0000,THAME,,OX9 3AT,REDACTED,556*********6959,3615,TRAVELODGE,88,Pound Sterling (826),1.000000000,88,Debit,55504438134298143700199,02/06/2018,GLOUCESTER CC
Gloucester City Council,23UE,Housing Services,HS001,B&B Payments,1303,15/05/2018,14/05/2018,TRAVELODGE GB0000,THAME,,OX9 3AT,REDACTED,556*********6959,3615,TRAVELODGE,334,Pound Sterling (826),1.000000000,334,Debit,55504438134298143690978,02/06/2018,GLOUCESTER CC
Gloucester City Council,23UE,Housing Services,HS001,B&B Payments,1303,15/05/2018,14/05/2018,TRAVELODGE GB0000,THAME,,OX9 3AT,REDACTED,556*********6959,3615,TRAVELODGE,175,Pound Sterling (826),1.000000000,175,Debit,55504438134298143648265,02/06/2018,GLOUCESTER CC
Gloucester City Council,23UE,Housing Services,HS001,B&B Payments,1303,15/05/2018,14/05/2018,TRAVELODGE GB0000,THAME,,OX9 3AT,REDACTED,556*********6959,3615,TRAVELODGE,407,Pound Sterling (826),1.000000000,407,Debit,55504438134298143604540,02/06/2018,GLOUCESTER CC
Gloucester City Council,23UE,Housing Services,HS001,B&B Payments,1303,16/05/2018,15/05/2018,TRAVELODGE GB0000,THAME,,OX9 3AT,REDACTED,556*********6959,3615,TRAVELODGE,92,Pound Sterling (826),1.000000000,92,Debit,55504438135298150474844,02/06/2018,GLOUCESTER CC
Gloucester City Council,23UE,Housing Services,HS001,B&B Payments,1303,17/05/2018,16/05/2018,Amerisuites,GLOUCESTER,,GL2 4NF,REDACTED,556*********6959,3514,AMERISUITES,285,Pound Sterling (826),1.000000000,285,Debit,85481478137041394276353,02/06/2018,GLOUCESTER CC
Gloucester City Council,23UE,Housing Services,HS001,B&B Payments,1303,17/05/2018,16/05/2018,Amerisuites,GLOUCESTER,,GL2 4NF,REDACTED,556*********6959,3514,AMERISUITES,560,Pound Sterling (826),1.000000000,560,Debit,85481478137041394276361,02/06/2018,GLOUCESTER CC
Gloucester City Council,23UE,Housing Services,HS001,B&B Payments,1303,17/05/2018,16/05/2018,TRAVELODGE GB0000,THAME,,OX9 3AT,REDACTED,556*********6959,3615,TRAVELODGE,159,Pound Sterling (826),1.000000000,159,Debit,55504438136298157504345,02/06/2018,GLOUCESTER CC
Gloucester City Council,23UE,Housing Services,HS001,B&B Payments,1303,17/05/2018,16/05/2018,TRAVELODGE GB0000,THAME,,OX9 3AT,REDACTED,556*********6959,3615,TRAVELODGE,92,Pound Sterling (826),1.000000000,92,Debit,55504438136298157549084,02/06/2018,GLOUCESTER CC
Gloucester City Council,23UE,Housing Services,HS001,B&B Payments,1303,18/05/2018,17/05/2018,TRAVELODGE GB0000,THAME,,OX9 3AT,REDACTED,556*********6959,3615,TRAVELODGE,67,Pound Sterling (826),1.000000000,67,Debit,55504438137298164286851,02/06/2018,GLOUCESTER CC
Gloucester City Council,23UE,Housing Services,HS001,B&B Payments,1303,18/05/2018,17/05/2018,TRAVELODGE GB0000,THAME,,OX9 3AT,REDACTED,556*********6959,3615,TRAVELODGE,325,Pound Sterling (826),1.000000000,325,Debit,55504438137298164230453,02/06/2018,GLOUCESTER CC
Gloucester City Council,23UE,Housing Services,HS001,B&B Payments,1303,21/05/2018,18/05/2018,TRAVELODGE GB0000,THAME,,OX9 3AT,REDACTED,556*********6959,3615,TRAVELODGE,254,Pound Sterling (826),1.000000000,254,Debit,55504438138298171170634,02/06/2018,GLOUCESTER CC
Gloucester City Council,23UE,Housing Services,HS001,B&B Payments,1303,21/05/2018,18/05/2018,TRAVELODGE GB0000,THAME,,OX9 3AT,REDACTED,556*********6959,3615,TRAVELODGE,342,Pound Sterling (826),1.000000000,342,Debit,55504438138298171170931,02/06/2018,GLOUCESTER CC
Gloucester City Council,23UE,Housing Services,HS001,B&B Payments,1303,21/05/2018,18/05/2018,TRAVELODGE GB0000,THAME,,OX9 3AT,REDACTED,556*********6959,3615,TRAVELODGE,-254,Pound Sterling (826),1.000000000,-254,Credit,55504438138298171174370,02/06/2018,GLOUCESTER CC
Gloucester City Council,23UE,Housing Services,HS001,B&B Payments,1303,23/05/2018,22/05/2018,TRAVELODGE GB0000,THAME,,OX9 3AT,REDACTED,556*********6959,3615,TRAVELODGE,391,Pound Sterling (826),1.000000000,391,Debit,55504438142298195971185,02/06/2018,GLOUCESTER CC
Gloucester City Council,23UE,Housing Services,HS001,B&B Payments,1303,23/05/2018,22/05/2018,Amerisuites,GLOUCESTER,,GL2 4NF,REDACTED,556*********6959,3514,AMERISUITES,285,Pound Sterling (826),1.000000000,285,Debit,85481478143043165893632,02/06/2018,GLOUCESTER CC
Gloucester City Council,23UE,Housing Services,HS001,B&B Payments,1303,23/05/2018,22/05/2018,Amerisuites,GLOUCESTER,,GL2 4NF,REDACTED,556*********6959,3514,AMERISUITES,560,Pound Sterling (826),1.000000000,560,Debit,85481478143043165893640,02/06/2018,GLOUCESTER CC
Gloucester City Council,23UE,Housing Services,HS001,Mileage and Travel Allowances,2401,24/05/2018,23/05/2018,VERIFONE TAXI/PRIVATE,03336661000,GBR,UB8 2AD,REDACTED,556*********6959,4121,TAXICABS/LIMOUSINES,5,Pound Sterling (826),1.000000000,5,Debit,25425158144080081096934,02/06/2018,GLOUCESTER CC
Gloucester City Council,23UE,Housing Services,HS001,B&B Payments,1303,24/05/2018,23/05/2018,TRAVELODGE GB0000,THAME,,OX9 3AT,REDACTED,556*********6959,3615,TRAVELODGE,92,Pound Sterling (826),1.000000000,92,Debit,55504438143298102922767,02/06/2018,GLOUCESTER CC
Gloucester City Council,23UE,Housing Services,HS001,B&B Payments,1303,24/05/2018,23/05/2018,TRAVELODGE GB0000,THAME,,OX9 3AT,REDACTED,556*********6959,3615,TRAVELODGE,418,Pound Sterling (826),1.000000000,418,Debit,55504438143298102966947,02/06/2018,GLOUCESTER CC
Gloucester City Council,23UE,Housing Services,HS001,B&B Payments,1303,25/05/2018,24/05/2018,TRAVELODGE GB0000,THAME,,OX9 3AT,REDACTED,556*********6959,3615,TRAVELODGE,683,Pound Sterling (826),1.000000000,683,Debit,55504438144298109753131,02/06/2018,GLOUCESTER CC
Gloucester City Council,23UE,Housing Services,HS001,B&B Payments,1303,28/05/2018,25/05/2018,TRAVELODGE GB0000,THAME,,OX9 3AT,REDACTED,556*********6959,3615,TRAVELODGE,247,Pound Sterling (826),1.000000000,247,Debit,55504438145298116944102,02/06/2018,GLOUCESTER CC
Gloucester City Council,23UE,Housing Services,HS001,B&B Payments,1303,30/05/2018,29/05/2018,TRAVELODGE GB0000,THAME,,OX9 3AT,REDACTED,556*********6959,3615,TRAVELODGE,413,Pound Sterling (826),1.000000000,413,Debit,55504438149298142075489,02/06/2018,GLOUCESTER CC
Gloucester City Council,23UE,Housing Services,HS001,B&B Payments,1303,30/05/2018,29/05/2018,TRAVELODGE GB0000,THAME,,OX9 3AT,REDACTED,556*********6959,3615,TRAVELODGE,349,Pound Sterling (826),1.000000000,349,Debit,55504438149298142087534,02/06/2018,GLOUCESTER CC
Gloucester City Council,23UE,Housing Services,HS001,B&B Payments,1303,30/05/2018,29/05/2018,TRAVELODGE GB0000,THAME,,OX9 3AT,REDACTED,556*********6959,3615,TRAVELODGE,114,Pound Sterling (826),1.000000000,114,Debit,55504438149298142128007,02/06/2018,GLOUCESTER CC
Gloucester City Council,23UE,Housing Services,HS001,B&B Payments,1303,30/05/2018,29/05/2018,TRAVELODGE GB0000,THAME,,OX9 3AT,REDACTED,556*********6959,3615,TRAVELODGE,496,Pound Sterling (826),1.000000000,496,Debit,55504438149298142173037,02/06/2018,GLOUCESTER CC
Gloucester City Council,23UE,Members Support,DS002,Public Transport - Staff,2402,03/05/2018,02/05/2018,Trainline,London,GBR,1445,REDACTED,556*********3822,4112,PASSENGER RAILWAYS,85.9,Pound Sterling (826),1.000000000,85.9,Debit,85130088122817677936725,02/06/2018,GLOUCESTER CC
Gloucester City Council,23UE,Business Support,BI004,Books & Publications,3401,07/05/2018,04/05/2018,Amazon UK Marketplace,800-279-6620,LUX,L2338,REDACTED,556*********3822,5942,BOOK STORES,33,Pound Sterling (826),1.000000000,33,Debit,55204728124200893306861,02/06/2018,GLOUCESTER CC
Gloucester City Council,23UE,Managing Director & Directors,MT001,Public Transport - Staff,2402,09/05/2018,08/05/2018,Trainline,London,GBR,1445,REDACTED,556*********3822,4112,PASSENGER RAILWAYS,148.8,Pound Sterling (826),1.000000000,148.8,Debit,85130088128818908932941,02/06/2018,GLOUCESTER CC
Gloucester City Council,23UE,Public Health,PH001,Public Transport - Staff,2402,09/05/2018,08/05/2018,Trainline,London,GBR,1445,REDACTED,556*********3822,4112,PASSENGER RAILWAYS,22.85,Pound Sterling (826),1.000000000,22.85,Debit,85130088128818908934707,02/06/2018,GLOUCESTER CC
Gloucester City Council,23UE,Public Health,PH001,Public Transport - Staff,2402,11/05/2018,10/05/2018,Trainline,London,GBR,1445,REDACTED,556*********3822,4112,PASSENGER RAILWAYS,22.85,Pound Sterling (826),1.000000000,22.85,Debit,85130088130818988705858,02/06/2018,GLOUCESTER CC
Gloucester City Council,23UE,Managing Director & Directors,MT001,Stationery,3201,14/05/2018,11/05/2018,Amazon EU,AMAZON.CO.UK,LUX,L2338,REDACTED,556*********3822,5969,ALL OTHER DIRECT MARKETERS,126,Pound Sterling (826),1.000000000,126,Debit,55204728131200258087214,02/06/2018,GLOUCESTER CC
Gloucester City Council,23UE,Council Streetcare Team,NE002,Public Transport - Staff,2402,18/05/2018,17/05/2018,Trainline,London,GBR,1445,REDACTED,556*********3822,4112,PASSENGER RAILWAYS,10.75,Pound Sterling (826),1.000000000,10.75,Debit,85130088137819260752884,02/06/2018,GLOUCESTER CC
Gloucester City Council,23UE,Community Safety Projects,CS001,Public Transport - Staff,2402,24/05/2018,23/05/2018,Trainline,London,GBR,1445,REDACTED,556*********3822,4112,PASSENGER RAILWAYS,128,Pound Sterling (826),1.000000000,128,Debit,85130088143820484592793,02/06/2018,GLOUCESTER CC
Gloucester City Council,23UE,Managing Director & Directors,MT001,Public Transport - Staff,2402,25/05/2018,24/05/2018,Trainline,London,GBR,1445,REDACTED,556*********3822,4112,PASSENGER RAILWAYS,32.65,Pound Sterling (826),1.000000000,32.65,Debit,85130088144820523857594,02/06/2018,GLOUCESTER CC
Gloucester City Council,23UE,Managing Director & Directors,MT001,Public Transport - Staff,2402,28/05/2018,25/05/2018,Trainline,London,GBR,1445,REDACTED,556*********3822,4112,PASSENGER RAILWAYS,-95.7,Pound Sterling (826),1.000000000,-95.7,Credit,85130088145820565180938,02/06/2018,GLOUCESTER CC
Gloucester City Council,23UE,Guildhall Bar & Caf�,GH005,Catering Provisions,3103,04/05/2018,03/05/2018,SAINSBURYS 2221,GLOUCESTER,GBR,GL2 5SA,REDACTED,556*********8256,5411,"GROCERY STORES, SUPERMARKETS",28,Pound Sterling (826),1.000000000,28,Debit,35425158124050170493915,02/06/2018,GLOUCESTER CC
Gloucester City Council,23UE,Blackfriars Weddings,GH011,Catering Provisions,3103,04/05/2018,03/05/2018,ASDA SUPERSTORE,GLOUCESTER,GBR,GL1 1DS,REDACTED,556*********8256,5411,"GROCERY STORES, SUPERMARKETS",58,Pound Sterling (826),1.000000000,58,Debit,45377758124050194203336,02/06/2018,GLOUCESTER CC
Gloucester City Council,23UE,Gloucester Guildhall,GH001,Equipment and Furniture,3001,07/05/2018,04/05/2018,Amazon Prime,amzn.co.uk/pm,LUX,L2338,REDACTED,556*********8256,5968,CONTINUITY/SUBSCRIPTION MERCHANTS,7.99,Pound Sterling (826),1.000000000,7.99,Debit,55204728124200947129020,02/06/2018,GLOUCESTER CC
Gloucester City Council,23UE,Guildhall Events,GH002,Advertising & Publicity,3404,07/05/2018,30/04/2018,FACEBK *HMMUSF2FX2,fb.me/ads,IRL,UNKNOWN,REDACTED,556*********8256,7311,ADVERTISING SERVICES,18.71,Pound Sterling (826),1.000000000,18.71,Debit,55204728120200100184238,02/06/2018,GLOUCESTER CC
Gloucester City Council,23UE,Gloucester Guildhall,GH001,Equipment and Furniture,3001,11/05/2018,10/05/2018,PAYPAL *BUYUR LTD,35314369001,GBR,TW91EH,REDACTED,556*********8256,4812,TELECOMMUNICATION EQUIPMENT INCLUDING TELEPHONE SALES,24.26,Pound Sterling (826),1.000000000,24.26,Debit,85130088130818968992278,02/06/2018,GLOUCESTER CC
Gloucester City Council,23UE,Gloucester Guildhall,GH001,Equipment and Furniture,3001,11/05/2018,10/05/2018,PAYPAL *LISAPRICE69,35314369001,GBR,TW91EH,REDACTED,556*********8256,5999,MISCELLANEOUS AND RETAIL STORES,75,Pound Sterling (826),1.000000000,75,Debit,85130088130818968944329,02/06/2018,GLOUCESTER CC
Gloucester City Council,23UE,Gloucester Guildhall,GH001,Equipment and Furniture,3001,14/05/2018,11/05/2018,PAYPAL *HAL,35314369001,GBR,TW91EH,REDACTED,556*********8256,5999,MISCELLANEOUS AND RETAIL STORES,74.25,Pound Sterling (826),1.000000000,74.25,Debit,85130088131818021000340,02/06/2018,GLOUCESTER CC
Gloucester City Council,23UE,Museum of Gloucester,MU002,Exhibition Costs,3021,14/05/2018,11/05/2018,B & Q 1179,GLOUCESTER,,GL12SG,REDACTED,556*********8256,5211,LUMBER AND BUILDING MATERIALS STORES,118.08,Pound Sterling (826),1.000000000,118.08,Debit,85481478132040039125426,02/06/2018,GLOUCESTER CC
Gloucester City Council,23UE,Gloucester Guildhall,GH001,Equipment and Furniture,3001,18/05/2018,17/05/2018,STAGEDEPOT.CO.UK,0117 3250336,,BS4 5QR,REDACTED,556*********8256,5251,HARDWARE STORES,85.07,Pound Sterling (826),1.000000000,85.07,Debit,85481478138041597132816,02/06/2018,GLOUCESTER CC
Gloucester City Council,23UE,Guildhall Events,GH002,Advertising & Publicity,3404,21/05/2018,18/05/2018,MAILCHIMP *MONTHLY,MAILCHIMP.COM,GA,30308,REDACTED,556*********8256,5968,CONTINUITY/SUBSCRIPTION MERCHANTS,56.09,Pound Sterling (826),1.000000000,56.09,Debit,55425448138200604713191,02/06/2018,GLOUCESTER CC
Gloucester City Council,23UE,Guildhall Events,GH002,Advertising & Publicity,3404,21/05/2018,18/05/2018,WWW.INSTANTPRINT.C,01709 382202,,S63 5DR,REDACTED,556*********8256,7338,QUICK-COPY AND REPRODUCTION SERVICES,26.99,Pound Sterling (826),1.000000000,26.99,Debit,85481478139041896299059,02/06/2018,GLOUCESTER CC
Gloucester City Council,23UE,Museum of Gloucester,MU002,Exhibition Costs,3021,25/05/2018,24/05/2018,Amazon EU,AMAZON.CO.UK,LUX,L2338,REDACTED,556*********8256,5969,ALL OTHER DIRECT MARKETERS,16.17,Pound Sterling (826),1.000000000,16.17,Debit,55204728144200597743167,02/06/2018,GLOUCESTER CC
Gloucester City Council,23UE,Gloucester Guildhall,GH001,Equipment and Furniture,3001,28/05/2018,26/05/2018,Amazon UK Marketplace,800-279-6620,LUX,L2338,REDACTED,556*********8256,5942,BOOK STORES,5.75,Pound Sterling (826),1.000000000,5.75,Debit,55204728146200929920929,02/06/2018,GLOUCESTER CC
Gloucester City Council,23UE,Gloucester Guildhall,GH001,Equipment and Furniture,3001,28/05/2018,26/05/2018,Amazon UK Marketplace,800-279-6620,LUX,L2338,REDACTED,556*********8256,5942,BOOK STORES,28.96,Pound Sterling (826),1.000000000,28.96,Debit,55204728146200972130400,02/06/2018,GLOUCESTER CC
Gloucester City Council,23UE,Museum of Gloucester,MU002,Exhibition Costs,3021,29/05/2018,28/05/2018,AMAZON SVCS EU-UK AMAZ,AMAZON.CO.UK,LUX,,REDACTED,556*********8256,5942,BOOK STORES,7.59,Pound Sterling (826),1.000000000,7.59,Debit,85389248148821547860667,02/06/2018,GLOUCESTER CC
Gloucester City Council,23UE,Guildhall Events,GH002,Advertising & Publicity,3404,30/05/2018,29/05/2018,FACEBK *WLFYVFNAG2,fb.me/ads,IRL,UNKNOWN,REDACTED,556*********8256,7311,ADVERTISING SERVICES,20,Pound Sterling (826),1.000000000,20,Debit,55204728149200488570716,02/06/2018,GLOUCESTER CC
Gloucester City Council,23UE,Gloucester Guildhall,GH001,Equipment and Furniture,3001,30/05/2018,29/05/2018,PAYPAL *IDELTAUKLTD,35314369001,GBR,TW91EH,REDACTED,556*********8256,5169,CHEMICALS AND ALLIED PRODUCTS NOT ELSEWH,5.99,Pound Sterling (826),1.000000000,5.99,Debit,85130088149821691410690,02/06/2018,GLOUCESTER CC
Gloucester City Council,23UE,Blackfriars ,GH010,Equipment and Furniture,3001,30/05/2018,29/05/2018,WWW.GRASSFORM.CO.UK,INTERNET,GBR,CM4 0NT,REDACTED,556*********8256,5085,INDUSTRIAL SUPPLIES NOT ELSEWHERE CLASSI,245.9,Pound Sterling (826),1.000000000,245.9,Debit,05272478150910000391793,02/06/2018,GLOUCESTER CC
Gloucester City Council,23UE,Guildhall Events,GH002,Advertising & Publicity,3404,01/06/2018,31/05/2018,FACEBK TVTL7G6LR2,fb.me/ads,IRL,2,REDACTED,556*********8256,7311,ADVERTISING SERVICES,19.94,Pound Sterling (826),1.000000000,19.94,Debit,15265678151000040773721,02/06/2018,GLOUCESTER CC
Gloucester City Council,23UE,Guildhall Events,GH002,Advertising & Publicity,3404,01/06/2018,31/05/2018,FACEBK URMHGGJ5M2,fb.me/ads,IRL,2,REDACTED,556*********8256,7311,ADVERTISING SERVICES,51.18,Pound Sterling (826),1.000000000,51.18,Debit,15265678151000228971535,02/06/2018,GLOUCESTER CC
Gloucester City Council,23UE,Guildhall Events,GH002,Professional Advice/Consultants Fees,3952,01/06/2018,31/05/2018,MIPERMIT LTD,INTERNET,GBR,SN15 5FD,REDACTED,556*********8256,7523,AUTOMOBILE PARKING LOTS AND GARAGES,10,Pound Sterling (826),1.000000000,10,Debit,25425158152030123060199,02/06/2018,GLOUCESTER CC
Gloucester City Council,23UE,Museum of Gloucester,MU002,Exhibition Costs,3021,01/06/2018,31/05/2018,PAYPAL *KUSTOMDESIG,35314369001,GBR,dn47ep,REDACTED,556*********8256,2741,MISCELLANEOUS PUBLISHING & PRINTING,51,Pound Sterling (826),1.000000000,51,Debit,85130088151821787941728,02/06/2018,GLOUCESTER CC
Gloucester City Council,23UE,Museum of Gloucester,MU002,Exhibition Costs,3021,01/06/2018,31/05/2018,PAYPAL *PRIMROSE,35314369001,GBR,RG301EA,REDACTED,556*********8256,5261,"NURSERIES, LAWN AND GARDEN SUPPLY STORES",36.98,Pound Sterling (826),1.000000000,36.98,Debit,85130088151821787931695,02/06/2018,GLOUCESTER CC
Gloucester City Council,23UE,Guildhall Events,GH002,Advertising & Publicity,3404,01/06/2018,31/05/2018,FACEBK *5AJQ3G2FX2,fb.me/ads,IRL,UNKNOWN,REDACTED,556*********8256,7311,ADVERTISING SERVICES,11.45,Pound Sterling (826),1.000000000,11.45,Debit,55204728152200889398901,02/06/2018,GLOUCESTER CC
Gloucester City Council,23UE,Civica Admin Charges,BI002,Professional Advice/Consultants Fees,3952,04/05/2018,03/05/2018,HMCOURTS-SERVICE.G,01452420100,,GL12ZG,REDACTED,556*********3063,9222,FINES,1755,Pound Sterling (826),1.000000000,1755,Debit,85481478124038045830880,02/06/2018,GLOUCESTER CC
Gloucester City Council,23UE,Business Transformation,BI006,ICT New Hardware,3523,07/05/2018,06/05/2018,Amazon UK Marketplace,800-279-6620,LUX,L2338,REDACTED,556*********3063,5942,BOOK STORES,32.99,Pound Sterling (826),1.000000000,32.99,Debit,55204728126200283192242,02/06/2018,GLOUCESTER CC
Gloucester City Council,23UE,Business Transformation,BI006,ICT New Hardware,3523,15/05/2018,14/05/2018,Amazon EU,AMAZON.CO.UK,LUX,L2338,REDACTED,556*********3063,5969,ALL OTHER DIRECT MARKETERS,59.94,Pound Sterling (826),1.000000000,59.94,Debit,55204728134200829789170,02/06/2018,GLOUCESTER CC
Gloucester City Council,23UE,Economic Development,ED001,Advertising & Publicity,3404,15/05/2018,14/05/2018,HIPPOPRINT,WAKEFIELD,,WF1 1DL,REDACTED,556*********3063,2741,MISCELLANEOUS PUBLISHING & PRINTING,81.9,Pound Sterling (826),1.000000000,81.9,Debit,55504438134174143403110,02/06/2018,GLOUCESTER CC
Gloucester City Council,23UE,Business Transformation,BI006,Public Transport - Staff,2402,23/05/2018,22/05/2018,Trainline,London,GBR,1445,REDACTED,556*********3063,4112,PASSENGER RAILWAYS,141.5,Pound Sterling (826),1.000000000,141.5,Debit,85130088142820440228665,02/06/2018,GLOUCESTER CC
Gloucester City Council,23UE,Elections,DS004,Professional Advice/Consultants Fees,3952,31/05/2018,30/05/2018,WWW.ICO.GOV.UK,03031231113 W,,SK95AF,REDACTED,556*********3063,9399,GOVERNMENT SERVICES NOT ELSEWHERE CLASSIFIED,-465,Pound Sterling (826),1.000000000,-465,Credit,85481478151045171543134,02/06/2018,GLOUCESTER CC
Gloucester City Council,23UE,Housing Services,HS001,B&B Payments,1303,01/06/2018,31/05/2018,TRAVELODGE GB0000,THAME,,OX9 3AT,REDACTED,556*********3063,3615,TRAVELODGE,266,Pound Sterling (826),1.000000000,266,Debit,55504438151298156861076,02/06/2018,GLOUCESTER CC
